fUST/lending_fUST_20260514
["ID","MTS","AMOUNT","RATE_DAILY","PERIOD"]
[422207185,1778694641000,-500.0,0.00011506,2]
[422207186,1778694641000,-500.0,0.00011506,2]
[422207181,1778694641000,-500.0,0.00011506,2]
[422207183,1778694641000,-500.0,0.00011506,2]
[422207191,1778694641000,-433.36116161,0.00011506,2]
[422207194,1778694641000,-500.0,0.00011506,2]
[422207205,1778694641000,-1468.55,0.00011506,2]
[422207195,1778694641000,-500.0,0.00011506,2]
[422207200,1778694641000,-500.0,0.00011506,2]
[422207202,1778694641000,-1052.99,0.00011506,2]
[422207203,1778694641000,-616.57,0.00011506,2]
[422207201,1778694641000,-500.0,0.00011506,2]
[422207207,1778694641000,-2105.35,0.00011506,2]
[422207204,1778694641000,-729.66,0.00011506,2]
[422207216,1778694641000,-693.0,0.00011506,2]
[422207215,1778694641000,-957.66,0.00011506,2]
[422207206,1778694641000,-500.0,0.00011506,2]
[422207214,1778694641000,-793.5,0.00011506,2]
[422207187,1778694641000,-626.54,0.00011506,2]
[422207210,1778694641000,-500.0,0.00011506,2]
[422207198,1778694641000,-1315.9,0.00011506,2]
[422207182,1778694641000,-1015.08,0.00011506,2]
[422207166,1778694641000,-506.36,0.00011506,2]
[422207190,1778694641000,-906.79,0.00011506,2]
[422207209,1778694641000,-559.36,0.00011506,2]
[422207153,1778694641000,-500.0,0.00011232,2]
[422207163,1778694641000,-864.0,0.00011483,2]
[422207155,1778694641000,-2757.65,0.00011232,2]
[422207164,1778694641000,-1811.6718,0.00011506,2]
[422207154,1778694641000,-1069.73,0.00011232,2]
[422207156,1778694641000,-2167.48,0.00011232,2]
[422207157,1778694641000,-1376.89,0.00011232,2]
[422207158,1778694641000,-751.24,0.00011232,2]
[422207160,1778694641000,-6106.6637567,0.00011377,2]
[422207159,1778694641000,-178.22859509,0.00011281,2]
[422207161,1778694641000,-271.18730165,0.00011401,2]
[422207162,1778694641000,-548.125,0.00011406,2]
[422207167,1778694641000,-500.0,0.00011506,2]
[422207165,1778694641000,-500.0,0.00011506,2]
[422207177,1778694641000,-500.0,0.00011506,2]
[422207176,1778694641000,-500.0,0.00011506,2]
[422207174,1778694641000,-500.0,0.00011506,2]
[422207175,1778694641000,-500.0,0.00011506,2]
[422207170,1778694641000,-500.0,0.00011506,2]
[422207168,1778694641000,-500.0,0.00011506,2]
[422207169,1778694641000,-623.51,0.00011506,2]
[422207172,1778694641000,-500.0,0.00011506,2]
[422207171,1778694641000,-500.0,0.00011506,2]
[422207173,1778694641000,-500.0,0.00011506,2]
[422207179,1778694641000,-500.0,0.00011506,2]
[422207189,1778694641000,-500.0,0.00011506,2]
[422207180,1778694641000,-500.0,0.00011506,2]
[422207212,1778694641000,-795.6,0.00011506,2]
[422207178,1778694641000,-749.38,0.00011506,2]
[422207208,1778694641000,-500.0,0.00011506,2]
[422207248,1778694641000,-2757.65,0.00011506,2]
[422207246,1778694641000,-500.0,0.00011506,2]
[422207249,1778694641000,-2167.48,0.00011506,2]
[422207252,1778694641000,-158.7,0.00011612,2]
[422207253,1778694641000,-159.52,0.00011684,2]
[422207251,1778694641000,-751.24,0.00011506,2]
[422207257,1778694641000,-191.40468866,0.0001176,2]
[422207250,1778694641000,-1376.89,0.00011506,2]
[422207262,1778694641000,-500.0,0.0001178,2]
[422207261,1778694641000,-500.0,0.0001178,2]
[422207259,1778694641000,-500.0,0.0001178,2]
[422207254,1778694641000,-191.98,0.00011739,2]
[422207255,1778694641000,-1651.1384846,0.00011758,2]
[422207272,1778694641000,-749.38,0.0001178,2]
[422207256,1778694641000,-4880.348675,0.00011758,2]
[422207264,1778694641000,-500.0,0.0001178,2]
[422207275,1778694641000,-500.0,0.0001178,2]
[422207274,1778694641000,-500.0,0.0001178,2]
[422207266,1778694641000,-500.0,0.0001178,2]
[422207263,1778694641000,-623.51,0.0001178,2]
[422207265,1778694641000,-500.0,0.0001178,2]
[422207268,1778694641000,-500.0,0.0001178,2]
[422207271,1778694641000,-500.0,0.0001178,2]
[422207269,1778694641000,-500.0,0.0001178,2]
[422207270,1778694641000,-500.0,0.0001178,2]
[422207273,1778694641000,-500.0,0.0001178,2]
[422207267,1778694641000,-500.0,0.0001178,2]
[422207211,1778694641000,-914.38,0.00011506,2]
[422207260,1778694641000,-506.36,0.0001178,2]
[422207247,1778694641000,-1069.73,0.00011506,2]
[422207258,1778694641000,-1811.6718,0.0001178,2]
[422207244,1778694641000,-500.0,0.00011506,2]
[422207245,1778694641000,-500.0,0.00011506,2]
[422207217,1778694641000,-2529.19,0.00011506,2]
[422207219,1778694641000,-500.0,0.00011506,2]
[422207220,1778694641000,-1607.89,0.00011506,2]
[422207228,1778694641000,-500.0,0.00011506,2]
[422207225,1778694641000,-500.0,0.00011506,2]
[422207224,1778694641000,-883.03,0.00011506,2]
[422207226,1778694641000,-1545.63,0.00011506,2]
[422207221,1778694641000,-509.17,0.00011506,2]
[422207223,1778694641000,-689.56,0.00011506,2]
[422207218,1778694641000,-1826.35,0.00011506,2]
[422207229,1778694641000,-726.25,0.00011506,2]
[422207213,1778694641000,-500.0,0.00011506,2]
[422207227,1778694641000,-2010.22,0.00011506,2]
[422207222,1778694641000,-806.57,0.00011506,2]
[422207231,1778694641000,-574.24,0.00011506,2]
[422207243,1778694641000,-1275.3,0.00011506,2]
[422207241,1778694641000,-2217.41,0.00011506,2]
[422207242,1778694641000,-1150.35,0.00011506,2]
[422207236,1778694641000,-2848.37,0.00011506,2]
[422207239,1778694641000,-1404.11,0.00011506,2]
[422207232,1778694641000,-15175.38,0.00011506,2]
[422207235,1778694641000,-837.24,0.00011506,2]
[422207233,1778694641000,-500.0,0.00011506,2]
[422207240,1778694641000,-500.0,0.00011506,2]
[422207238,1778694641000,-845.74,0.00011506,2]
[422207237,1778694641000,-1294.58,0.00011506,2]
[422207230,1778694641000,-975.57,0.00011506,2]
[422207234,1778694641000,-1123.12,0.00011506,2]
[422207294,1778694642000,-500.0,0.0001178,2]
[422207298,1778694642000,-1468.55,0.0001178,2]
[422207296,1778694642000,-616.57,0.0001178,2]
[422207295,1778694642000,-1052.99,0.0001178,2]
[422207297,1778694642000,-729.66,0.0001178,2]
[422207301,1778694642000,-500.0,0.0001178,2]
[422207303,1778694642000,-500.0,0.0001178,2]
[422207312,1778694642000,-500.0,0.0001178,2]
[422207304,1778694642000,-914.38,0.0001178,2]
[422207305,1778694642000,-795.6,0.0001178,2]
[422207315,1778694642000,-806.57,0.0001178,2]
[422207307,1778694642000,-793.5,0.0001178,2]
[422207310,1778694642000,-2529.19,0.0001178,2]
[422207299,1778694642000,-500.0,0.0001178,2]
[422207302,1778694642000,-559.36,0.0001178,2]
[422207293,1778694642000,-500.0,0.0001178,2]
[422207279,1778694642000,-500.0,0.0001178,2]
[422207290,1778694642000,-500.0,0.0001178,2]
[422207309,1778694642000,-693.0,0.0001178,2]
[422207276,1778694642000,-1015.08,0.0001178,2]
[422207277,1778694642000,-500.0,0.0001178,2]
[422207280,1778694642000,-500.0,0.0001178,2]
[422207281,1778694642000,-626.54,0.0001178,2]
[422207282,1778694642000,-500.0,0.0001178,2]
[422207283,1778694642000,-500.0,0.0001178,2]
[422207292,1778694642000,-789.19,0.0001178,2]
[422207278,1778694642000,-500.0,0.0001178,2]
[422207288,1778694642000,-500.0,0.0001178,2]
[422207286,1778694642000,-928.32,0.0001178,2]
[422207285,1778694642000,-635.68,0.0001178,2]
[422207289,1778694642000,-500.0,0.0001178,2]
[422207287,1778694642000,-500.0,0.0001178,2]
[422207300,1778694642000,-2105.35,0.0001178,2]
[422207291,1778694642000,-1315.9,0.0001178,2]
[422207284,1778694642000,-906.79,0.0001178,2]
[422207308,1778694642000,-957.66,0.0001178,2]
[422207313,1778694642000,-1607.89,0.0001178,2]
[422207311,1778694642000,-1826.35,0.0001178,2]
[422207332,1778694642000,-1404.11,0.0001178,2]
[422207343,1778694642000,-1376.89,0.0001178,2]
[422207334,1778694642000,-2217.41,0.0001178,2]
[422207335,1778694642000,-1150.35,0.0001178,2]
[422207337,1778694642000,-500.0,0.0001178,2]
[422207340,1778694642000,-1069.73,0.0001178,2]
[422207338,1778694642000,-500.0,0.0001178,2]
[422207339,1778694642000,-500.0,0.0001178,2]
[422207336,1778694642000,-1275.3,0.0001178,2]
[422207345,1778694642000,-160.13,0.00011829,2]
[422207346,1778694642000,-7007.17005545,0.00011877,2]
[422207347,1778694642000,-171.1036,0.00011917,2]
[422207348,1778694642000,-160.0,0.0001196,4]
[422207349,1778694642000,-69586.95001198,0.00012,2]
[422207306,1778694642000,-500.0,0.0001178,2]
[422207333,1778694642000,-500.0,0.0001178,2]
[422207342,1778694642000,-2167.48,0.0001178,2]
[422207344,1778694642000,-751.24,0.0001178,2]
[422207331,1778694642000,-845.74,0.0001178,2]
[422207314,1778694642000,-509.17,0.0001178,2]
[422207341,1778694642000,-2757.65,0.0001178,2]
[422207329,1778694642000,-2848.37,0.0001178,2]
[422207317,1778694642000,-883.03,0.0001178,2]
[422207328,1778694642000,-837.24,0.0001178,2]
[422207326,1778694642000,-500.0,0.0001178,2]
[422207318,1778694642000,-500.0,0.0001178,2]
[422207321,1778694642000,-500.0,0.0001178,2]
[422207327,1778694642000,-1123.12,0.0001178,2]
[422207319,1778694642000,-1545.63,0.0001178,2]
[422207316,1778694642000,-689.56,0.0001178,2]
[422207324,1778694642000,-574.24,0.0001178,2]
[422207330,1778694642000,-1294.58,0.0001178,2]
[422207320,1778694642000,-2010.22,0.0001178,2]
[422207322,1778694642000,-726.25,0.0001178,2]
[422207325,1778694642000,-15175.38,0.0001178,2]
[422207323,1778694642000,-975.57,0.0001178,2]
[422207391,1778694644000,-635.68,0.00012054,2]
[422207390,1778694644000,-906.79,0.00012054,2]
[422207387,1778694644000,-626.54,0.00012054,2]
[422207392,1778694644000,-928.32,0.00012054,2]
[422207383,1778694644000,-500.0,0.00012054,2]
[422207388,1778694644000,-500.0,0.00012054,2]
[422207385,1778694644000,-500.0,0.00012054,2]
[422207380,1778694644000,-500.0,0.00012054,2]
[422207394,1778694644000,-500.0,0.00012054,2]
[422207384,1778694644000,-500.0,0.00012054,2]
[422207389,1778694644000,-500.0,0.00012054,2]
[422207404,1778694644000,-500.0,0.00012054,2]
[422207403,1778694644000,-1468.55,0.00012054,2]
[422207399,1778694644000,-500.0,0.00012054,2]
[422207397,1778694644000,-789.19,0.00012054,2]
[422207393,1778694644000,-500.0,0.00012054,2]
[422207395,1778694644000,-500.0,0.00012054,2]
[422207400,1778694644000,-1052.99,0.00012054,2]
[422207402,1778694644000,-729.66,0.00012054,2]
[422207396,1778694644000,-500.0,0.00012054,2]
[422207401,1778694644000,-616.57,0.00012054,2]
[422207406,1778694644000,-500.0,0.00012054,2]
[422207416,1778694644000,-1826.35,0.00012054,2]
[422207378,1778694644000,-749.38,0.00012054,2]
[422207398,1778694644000,-500.0,0.00012054,2]
[422207382,1778694644000,-1015.08,0.00012054,2]
[422207359,1778694644000,-153.86,0.00012,2]
[422207379,1778694644000,-500.0,0.00012054,2]
[422207405,1778694644000,-2105.35,0.00012054,2]
[422207354,1778694644000,-15925.69968715,0.00012,2]
[422207355,1778694644000,-369.81099996,0.00012,2]
[422207362,1778694644000,-155.0,0.00012053,2]
[422207356,1778694644000,-609.82290944,0.00012,2]
[422207358,1778694644000,-599.09304036,0.00012,2]
[422207360,1778694644000,-164063.15220114,0.00012,2]
[422207361,1778694644000,-1410.9801018,0.00012,2]
[422207357,1778694644000,-8368.19646127,0.00012,2]
[422207363,1778694644000,-543.1288,0.00012054,2]
[422207364,1778694644000,-1268.543,0.00012054,2]
[422207366,1778694644000,-506.36,0.00012054,2]
[422207365,1778694644000,-500.0,0.00012054,2]
[422207367,1778694644000,-500.0,0.00012054,2]
[422207369,1778694644000,-623.51,0.00012054,2]
[422207368,1778694644000,-248.31593202,0.00012054,2]
[422207375,1778694644000,-500.0,0.00012054,2]
[422207372,1778694644000,-500.0,0.00012054,2]
[422207374,1778694644000,-500.0,0.00012054,2]
[422207371,1778694644000,-500.0,0.00012054,2]
[422207370,1778694644000,-500.0,0.00012054,2]
[422207373,1778694644000,-500.0,0.00012054,2]
[422207386,1778694644000,-500.0,0.00012054,2]
[422207377,1778694644000,-500.0,0.00012054,2]
[422207376,1778694644000,-500.0,0.00012054,2]
[422207381,1778694644000,-500.0,0.00012054,2]
[422207407,1778694644000,-559.36,0.00012054,2]
[422207443,1778694644000,-500.0,0.00012054,2]
[422207414,1778694644000,-693.0,0.00012054,2]
[422207434,1778694644000,-2848.37,0.00012054,2]
[422207435,1778694644000,-1294.58,0.00012054,2]
[422207440,1778694644000,-1150.35,0.00012054,2]
[422207461,1778694644000,-506.36,0.00012328,2]
[422207454,1778694644000,-3466.95988149,0.00012247,2]
[422207445,1778694644000,-1069.73,0.00012054,2]
[422207444,1778694644000,-500.0,0.00012054,2]
[422207447,1778694644000,-2167.48,0.00012054,2]
[422207448,1778694644000,-1376.89,0.00012054,2]
[422207450,1778694644000,-223.0,0.00012055,3]
[422207452,1778694644000,-250.0,0.000121,2]
[422207439,1778694644000,-2217.41,0.00012054,2]
[422207446,1778694644000,-2757.65,0.00012054,2]
[422207453,1778694644000,-435.70637706,0.00012228,21]
[422207449,1778694644000,-751.24,0.00012054,2]
[422207456,1778694644000,-473.06789716,0.00012263,2]
[422207457,1778694644000,-160.0,0.00012298,5]
[422207458,1778694644000,-543.1288,0.00012328,2]
[422207462,1778694644000,-500.0,0.00012328,2]
[422207455,1778694644000,-286.84034943,0.00012263,2]
[422207459,1778694644000,-1268.543,0.00012328,2]
[422207460,1778694644000,-500.0,0.00012328,2]
[422207464,1778694644000,-500.0,0.00012328,2]
[422207409,1778694644000,-914.38,0.00012054,2]
[422207451,1778694644000,-164.11,0.0001206,2]
[422207437,1778694644000,-1404.11,0.00012054,2]
[422207463,1778694644000,-623.51,0.00012328,2]
[422207441,1778694644000,-1275.3,0.00012054,2]
[422207410,1778694644000,-795.6,0.00012054,2]
[422207411,1778694644000,-500.0,0.00012054,2]
[422207412,1778694644000,-793.5,0.00012054,2]
[422207408,1778694644000,-500.0,0.00012054,2]
[422207413,1778694644000,-957.66,0.00012054,2]
[422207415,1778694644000,-2529.19,0.00012054,2]
[422207417,1778694644000,-500.0,0.00012054,2]
[422207422,1778694644000,-883.03,0.00012054,2]
[422207436,1778694644000,-845.74,0.00012054,2]
[422207421,1778694644000,-689.56,0.00012054,2]
[422207418,1778694644000,-1607.89,0.00012054,2]
[422207419,1778694644000,-509.17,0.00012054,2]
[422207420,1778694644000,-806.57,0.00012054,2]
[422207427,1778694644000,-726.25,0.00012054,2]
[422207425,1778694644000,-2010.22,0.00012054,2]
[422207423,1778694644000,-500.0,0.00012054,2]
[422207429,1778694644000,-574.24,0.00012054,2]
[422207426,1778694644000,-500.0,0.00012054,2]
[422207428,1778694644000,-975.57,0.00012054,2]
[422207431,1778694644000,-500.0,0.00012054,2]
[422207438,1778694644000,-500.0,0.00012054,2]
[422207430,1778694644000,-15175.38,0.00012054,2]
[422207442,1778694644000,-500.0,0.00012054,2]
[422207424,1778694644000,-1545.63,0.00012054,2]
[422207433,1778694644000,-837.24,0.00012054,2]
[422207432,1778694644000,-1123.12,0.00012054,2]
[422207502,1778694645000,-500.0,0.00012328,2]
[422207503,1778694645000,-914.38,0.00012328,2]
[422207505,1778694645000,-500.0,0.00012328,2]
[422207492,1778694645000,-500.0,0.00012328,2]
[422207498,1778694645000,-500.0,0.00012328,2]
[422207494,1778694645000,-1052.99,0.00012328,2]
[422207488,1778694645000,-500.0,0.00012328,2]
[422207496,1778694645000,-729.66,0.00012328,2]
[422207501,1778694645000,-559.36,0.00012328,2]
[422207516,1778694645000,-883.03,0.00012328,2]
[422207497,1778694645000,-1468.55,0.00012328,2]
[422207500,1778694645000,-500.0,0.00012328,2]
[422207499,1778694645000,-2105.35,0.00012328,2]
[422207504,1778694645000,-795.6,0.00012328,2]
[422207508,1778694645000,-693.0,0.00012328,2]
[422207518,1778694645000,-1545.63,0.00012328,2]
[422207519,1778694645000,-2010.22,0.00012328,2]
[422207507,1778694645000,-957.66,0.00012328,2]
[422207513,1778694645000,-509.17,0.00012328,2]
[422207509,1778694645000,-2529.19,0.00012328,2]
[422207487,1778694645000,-500.0,0.00012328,2]
[422207506,1778694645000,-793.5,0.00012328,2]
[422207486,1778694645000,-928.32,0.00012328,2]
[422207477,1778694645000,-500.0,0.00012328,2]
[422207489,1778694645000,-500.0,0.00012328,2]
[422207512,1778694645000,-1607.89,0.00012328,2]
[422207466,1778694645000,-500.0,0.00012328,2]
[422207467,1778694645000,-500.0,0.00012328,2]
[422207468,1778694645000,-500.0,0.00012328,2]
[422207465,1778694645000,-500.0,0.00012328,2]
[422207469,1778694645000,-500.0,0.00012328,2]
[422207475,1778694645000,-500.0,0.00012328,2]
[422207474,1778694645000,-500.0,0.00012328,2]
[422207472,1778694645000,-749.38,0.00012328,2]
[422207470,1778694645000,-500.0,0.00012328,2]
[422207480,1778694645000,-500.0,0.00012328,2]
[422207471,1778694645000,-500.0,0.00012328,2]
[422207473,1778694645000,-500.0,0.00012328,2]
[422207476,1778694645000,-1015.08,0.00012328,2]
[422207478,1778694645000,-500.0,0.00012328,2]
[422207481,1778694645000,-626.54,0.00012328,2]
[422207479,1778694645000,-500.0,0.00012328,2]
[422207483,1778694645000,-500.0,0.00012328,2]
[422207493,1778694645000,-500.0,0.00012328,2]
[422207482,1778694645000,-500.0,0.00012328,2]
[422207484,1778694645000,-906.79,0.00012328,2]
[422207485,1778694645000,-635.68,0.00012328,2]
[422207491,1778694645000,-789.19,0.00012328,2]
[422207490,1778694645000,-500.0,0.00012328,2]
[422207514,1778694645000,-806.57,0.00012328,2]
[422207495,1778694645000,-616.57,0.00012328,2]
[422207511,1778694645000,-500.0,0.00012328,2]
[422207543,1778694645000,-751.24,0.00012328,2]
[422207544,1778694645000,-21573.68,0.00012329,2]
[422207547,1778694645000,-12751.31,0.00012329,2]
[422207549,1778694645000,-8855.08,0.00012329,2]
[422207548,1778694645000,-10626.09,0.00012329,2]
[422207515,1778694645000,-689.56,0.00012328,2]
[422207560,1778694645000,-221.81,0.0001235,2]
[422207553,1778694645000,-7195.70372144,0.00012342,2]
[422207552,1778694645000,-473.06789716,0.00012336,2]
[422207558,1778694645000,-1524.890163,0.0001235,2]
[422207559,1778694645000,-2889.780327,0.0001235,2]
[422207551,1778694645000,-6149.36,0.00012329,2]
[422207554,1778694645000,-160.0,0.0001235,2]
[422207555,1778694645000,-677.293946,0.0001235,2]
[422207557,1778694645000,-160.0,0.0001235,2]
[422207556,1778694645000,-1194.587893,0.0001235,2]
[422207562,1778694645000,-160.0,0.00012412,2]
[422207561,1778694645000,-473.06789716,0.0001241,7]
[422207565,1778694645000,-160.0,0.00012412,2]
[422207564,1778694645000,-8988.583828,0.00012412,2]
[422207563,1778694645000,-4574.291914,0.00012412,2]
[422207566,1778694645000,-4755.776959,0.00012412,2]
[422207567,1778694645000,-9279.22459441,0.00012412,2]
[422207540,1778694645000,-2757.65,0.00012328,2]
[422207541,1778694645000,-2167.48,0.00012328,2]
[422207550,1778694645000,-7379.23,0.00012329,2]
[422207536,1778694645000,-500.0,0.00012328,2]
[422207517,1778694645000,-500.0,0.00012328,2]
[422207510,1778694645000,-1826.35,0.00012328,2]
[422207521,1778694645000,-726.25,0.00012328,2]
[422207531,1778694645000,-1404.11,0.00012328,2]
[422207546,1778694645000,-15301.57,0.00012329,2]
[422207520,1778694645000,-500.0,0.00012328,2]
[422207522,1778694645000,-975.57,0.00012328,2]
[422207526,1778694645000,-1123.12,0.00012328,2]
[422207523,1778694645000,-574.24,0.00012328,2]
[422207533,1778694645000,-2217.41,0.00012328,2]
[422207529,1778694645000,-1294.58,0.00012328,2]
[422207532,1778694645000,-500.0,0.00012328,2]
[422207528,1778694645000,-2848.37,0.00012328,2]
[422207527,1778694645000,-837.24,0.00012328,2]
[422207530,1778694645000,-845.74,0.00012328,2]
[422207524,1778694645000,-15175.38,0.00012328,2]
[422207535,1778694645000,-1275.3,0.00012328,2]
[422207534,1778694645000,-1150.35,0.00012328,2]
[422207545,1778694645000,-18361.89,0.00012329,2]
[422207539,1778694645000,-1069.73,0.00012328,2]
[422207538,1778694645000,-500.0,0.00012328,2]
[422207542,1778694645000,-1376.89,0.00012328,2]
[422207537,1778694645000,-500.0,0.00012328,2]
[422207525,1778694645000,-500.0,0.00012328,2]
[422207575,1778694647000,-72.32932359,0.00012412,2]
[422207580,1778694647000,-11794.50935732,0.000125,2]
[422207579,1778694647000,-859.45,0.000125,2]
[422207577,1778694647000,-206.076157,0.00012473,2]
[422207578,1778694647000,-473.06789716,0.00012484,7]
[422207576,1778694647000,-249.6191,0.00012438,3]
[422207581,1778694647000,-724.23767766,0.000125,2]
[422207574,1778694647000,-200.0,0.00012235,2]
[422207593,1778695312000,-167.789875,0.00010017,2]
[422207645,1778695834000,-5000.0,9.238e-05,2]
[422207647,1778695834000,-328.62533615,9.378e-05,2]
[422207648,1778695834000,-438.11437354,9.425e-05,2]
[422207650,1778695834000,-167.789875,9.695e-05,2]
[422207653,1778695834000,-2001.7871333,0.00010247,4]
[422207657,1778695834000,-926.34400923,0.00010758,2]
[422207655,1778695834000,-200.0,0.0001031,2]
[422207660,1778695834000,-160.0,0.0001077,2]
[422207661,1778695834000,-161.63868993,0.0001077,2]
[422207673,1778695834000,-2634.60670869,0.00010858,2]
[422207663,1778695834000,-160.0,0.0001077,2]
[422207665,1778695834000,-160.0,0.0001077,2]
[422207667,1778695834000,-8859.62542818,0.00010858,2]
[422207669,1778695834000,-46046.36600175,0.00010858,2]
[422207658,1778695834000,-300.0,0.00010769,2]
[422207714,1778695838000,-834455.65779308,0.00010858,2]
[422207713,1778695838000,-2576.23,0.0001075,2]
[422207710,1778695838000,-2423.77,0.0001075,2]
[422207716,1778695838000,-692481.2996264,0.00010858,2]
[422207717,1778695838000,-933.11050453,0.00010858,2]
[422207715,1778695838000,-32554.66578923,0.00010858,2]
[422207724,1778695840000,-394.65,0.00010858,2]
[422207723,1778695840000,-1788.92292671,0.00010858,2]
[422207741,1778695843000,-1930.04165381,0.00010858,2]
[422207752,1778695846000,-470.09113638,0.00010858,2]
[422207751,1778695846000,-5596.86798474,0.00010858,2]
[422207759,1778696556000,2465.9720971,0.00014,30]
[422207848,1778697040000,-3470.0,9.489e-05,2]
[422207849,1778697040000,-1530.0,9.489e-05,2]
[422207850,1778697040000,-318.15688774,9.585e-05,2]
[422207851,1778697040000,-336.38822292,9.633e-05,2]
[422207852,1778697040000,-200.0,0.00010684,2]
[422207853,1778697040000,-1200.0,0.00010698,2]
[422207855,1778697040000,-300.0,0.00010699,2]
[422207854,1778697040000,-300.0,0.00010699,2]
[422207856,1778697040000,-300.0,0.00010699,2]
[422207858,1778697040000,-7406.91344323,0.000107,2]
[422207857,1778697040000,-66.6378795,0.000107,2]
[422207859,1778697040000,-2304.04507,0.000107,2]
[422207860,1778697040000,-967.5263942,0.000107,2]
[422207917,1778697041000,-557.61851598,0.00010799,2]
[422207936,1778697041000,-500.0,0.00010799,2]
[422207938,1778697041000,-500.0,0.00010799,2]
[422207940,1778697041000,-500.0,0.00010799,2]
[422207942,1778697041000,-500.0,0.00010799,2]
[422207946,1778697041000,-500.0,0.00010799,2]
[422207947,1778697041000,-500.0,0.00010799,2]
[422207944,1778697041000,-500.0,0.00010799,2]
[422207951,1778697041000,-500.0,0.00010799,2]
[422207953,1778697041000,-500.0,0.00010799,2]
[422207923,1778697041000,-500.0,0.00010799,2]
[422207955,1778697041000,-500.0,0.00010799,2]
[422207957,1778697041000,-500.0,0.00010799,2]
[422207960,1778697041000,-500.0,0.00010799,2]
[422207961,1778697041000,-500.0,0.00010799,2]
[422207963,1778697041000,-500.0,0.00010799,2]
[422207950,1778697041000,-500.0,0.00010799,2]
[422207930,1778697041000,-500.0,0.00010799,2]
[422207895,1778697041000,-164.5562762,0.00010771,2]
[422207932,1778697041000,-423.74779861,0.00010799,2]
[422207966,1778697041000,-500.0,0.00010799,2]
[422207893,1778697041000,-283866.1201106,0.000107,2]
[422207891,1778697041000,-49586.03226964,0.000107,2]
[422207897,1778697041000,-6308.34319775,0.00010772,2]
[422207901,1778697041000,-160.0,0.00010772,2]
[422207904,1778697041000,-500.0,0.00010799,2]
[422207899,1778697041000,-161.63868993,0.00010772,2]
[422207903,1778697041000,-500.0,0.00010799,2]
[422207907,1778697041000,-500.0,0.00010799,2]
[422207909,1778697041000,-500.0,0.00010799,2]
[422207911,1778697041000,-500.0,0.00010799,2]
[422207912,1778697041000,-252.14063367,0.00010799,2]
[422207914,1778697041000,-500.0,0.00010799,2]
[422207925,1778697041000,-500.0,0.00010799,2]
[422207929,1778697041000,-500.0,0.00010799,2]
[422207918,1778697041000,-500.0,0.00010799,2]
[422207934,1778697041000,-500.0,0.00010799,2]
[422207921,1778697041000,-647.59707286,0.00010799,2]
[422207975,1778697041000,-500.0,0.00010799,2]
[422207927,1778697041000,-500.0,0.00010799,2]
[422207979,1778697041000,-500.0,0.00010799,2]
[422208015,1778697041000,-500.0,0.00010799,2]
[422208025,1778697041000,-500.0,0.00010799,2]
[422208027,1778697041000,-500.0,0.00010799,2]
[422208031,1778697041000,-500.0,0.00010799,2]
[422208047,1778697041000,-500.0,0.00010799,2]
[422208017,1778697041000,-300.0,0.00010799,2]